bitfinex/quotes_SOLUSD_20240808
["timestamp","ask_amount","ask_price","bid_price","bid_amount"]
[1723155025984,6.2842,159.13,159.08,6.286]
[1723155026175,16.5461,159.18,159.05,20.0]
[1723155026378,6.2825,159.18,159.12,6.2845]
[1723155026689,6.2825,159.18,159.07,31.431]
[1723155026690,6.2841,159.13,159.08,6.2861]
[1723155026987,22.3567,159.2,159.09,15.7134]
[1723155027980,6.283,159.16,159.11,21.9959]
[1723155028188,6.6532,159.2,159.07,15.7154]
[1723155028389,6.6532,159.2,159.12,6.2845]
[1723155028560,23.16683592,159.25,159.1,20.0]
[1723155028761,6.56253592,159.25,159.22,6.2804]
[1723155028978,6.2795,159.25,159.2,6.2811]
[1723155029290,7.60092812,159.27,159.17,6.2822]
[1723155029455,1.57025509,159.26,159.17,6.2825]
[1723155029788,6.0309,159.27,159.16,15.7074]
[1723155029975,1.57028259,159.26,159.17,6.2824]
[1723155030164,1.57028259,159.26,159.13,15.7104]
[1723155030165,21.57028259,159.26,159.13,15.7104]
[1723155030364,6.2813,159.21,159.16,6.2829]
[1723155030883,20.0,159.26,159.16,15.7069]
[1723155031087,1.57022441,159.25,159.16,21.9898]
[1723155031264,20.0,159.26,159.16,15.7069]
[1723155031464,20.0,159.26,159.18,6.2818]
[1723155031761,6.2798,159.24,159.19,6.2816]
[1723155031963,6.2802,159.23,159.17,6.2825]
[1723155032157,15.6986,159.25,159.16,15.7069]
[1723155032384,1.57038528,159.24,159.16,15.7069]
[1723155032573,1.570385,159.23,159.16,15.7069]
[1723155032778,6.2813,159.21,159.16,15.7069]
[1723155032976,20.0,159.26,159.18,15.7046]
[1723155033185,7.1397268,159.35,159.19,65.0]
[1723155033490,15.4739,159.32,159.24,6.2794]
[1723155033658,6.2782,159.29,159.23,21.9798]
[1723155033860,15.4739,159.32,159.23,15.6997]
[1723155034196,22.8285268,159.35,159.24,65.0]
[1723155034197,7.1397268,159.35,159.24,65.0]
[1723155034374,0.8230268,159.35,159.26,61.38]
[1723155034691,0.8230268,159.35,159.31,15.6924]
[1723155034890,6.2771,159.31,159.27,45.0]
[1723155035091,6.2771,159.31,159.27,15.6958]
[1723155035327,2.39240171,159.35,159.26,6.2789]
[1723155035598,2.39240171,159.35,159.21,31.4047]
[1723155035599,6.2763,159.33,159.27,6.2786]
[1723155035789,6.2759,159.34,159.28,6.2782]
[1723155035982,7.0984268,159.35,159.29,6.2777]
[1723155036196,0.8230268,159.35,159.32,6.2766]
[1723155036511,0.8230268,159.35,159.34,6.2758]
[1723155036669,0.8230268,159.35,159.34,51.2758]
[1723155037069,0.8230268,159.35,159.34,6.2758]
[1723155037290,0.8230268,159.35,159.34,51.2758]
[1723155038203,22.23485362,159.49,159.34,51.2758]
[1723155038204,7.0122268,159.51,159.34,65.0]
[1723155038387,6.2731,159.41,159.36,21.9619]
[1723155038574,6.2731,159.41,159.34,65.0]
[1723155038575,6.2735,159.4,159.34,51.2755]
[1723155038779,15.677,159.47,159.31,31.3842]
[1723155038984,15.677,159.47,159.37,6.2747]
[1723155039291,6.2736,159.4,159.35,21.9632]
[1723155039495,1.56857261,159.39,159.31,15.6922]
[1723155039694,6.2744,159.38,159.33,6.2762]
[1723155039896,6.2744,159.38,159.31,21.9688]
[1723155040096,1.56878021,159.42,159.31,15.6922]
[1723155040280,6.2743,159.38,159.33,6.2762]
[1723155040603,6.2743,159.38,159.32,6.2766]
[1723155040904,6.2743,159.38,159.21,47.8335]
[1723155040905,1.56885,159.37,159.27,15.6959]
[1723155041087,6.4881,159.37,159.27,15.6959]
[1723155041404,6.4881,159.37,159.32,6.2766]
[1723155041613,6.2743,159.38,159.32,6.2766]
[1723155041906,1.56885186,159.45,159.39,15.6846]
[1723155041907,15.1503,159.45,159.39,15.6846]
[1723155042107,6.2716,159.45,159.39,15.6846]
[1723155042400,1.56815035,159.44,159.28,16.1546]
[1723155042609,1.56856696,159.48,159.29,65.0]
[1723155042782,6.2723,159.43,159.37,6.2745]
[1723155042995,6.2727,159.42,159.36,6.275]
[1723155043307,6.2732,159.41,159.36,6.275]
[1723155043505,21.8851,159.49,159.37,6.2746]
[1723155043695,6.2728,159.42,159.36,6.275]
[1723155044212,15.6784,159.46,159.29,65.0]
[1723155044387,21.56880028,159.45,159.3,15.6929]
[1723155044888,6.2746,159.38,159.32,6.2766]
[1723155045096,6.2748,159.37,159.32,6.2766]
[1723155045488,6.2757,159.35,159.3,15.6929]
[1723155045692,6.2758,159.34,159.26,15.6967]
[1723155045895,1.56912112,159.39,159.24,31.399]
[1723155046104,1.56880947,159.39,159.24,31.399]
[1723155046310,20.0,159.4,159.24,51.399]
[1723155046491,6.2758,159.34,159.24,31.399]
[1723155046913,7.84543937,159.33,159.28,15.6953]
[1723155047288,6.5219,159.36,159.21,6.2807]
[1723155047289,21.56933619,159.32,159.21,6.2807]
[1723155047481,21.56933619,159.32,159.15,6.4511]
[1723155047692,6.2792,159.26,159.2,21.984]
[1723155047895,1.57005007,159.25,159.16,15.7067]
[1723155048190,6.2793,159.26,159.19,15.7043]
[1723155048382,21.57017424,159.27,159.22,15.7014]
[1723155048587,26.279,159.27,159.22,21.9819]
[1723155048809,20.0,159.27,159.22,15.7014]
[1723155049385,6.2814,159.2,159.09,6.4511]
[1723155049605,1.57050079,159.25,159.14,15.7092]
[1723155049913,17.26980079,159.25,159.14,15.7092]
[1723155050216,20.0,159.24,159.14,15.7092]
[1723155050410,1.57050153,159.23,159.14,15.7092]
[1723155050586,6.2822,159.18,159.13,6.284]
[1723155050787,6.0627,159.22,159.13,15.7102]
[1723155051001,26.281,159.21,159.16,6.2826]
[1723155051210,20.0,159.21,159.18,6.2821]
[1723155051419,20.0,159.21,159.17,6.2825]
[1723155051595,6.2802,159.23,159.17,6.2825]
[1723155051792,20.0,159.22,159.16,15.7073]
[1723155052188,1.5703821,159.21,159.12,15.7107]
[1723155052403,15.6996,159.24,159.08,31.4295]
[1723155052696,6.2811,159.21,159.14,6.2837]
[1723155052906,20.0,159.23,159.14,15.7093]
[1723155053107,20.0,159.23,159.12,20.0]
[1723155053309,6.279,159.27,159.17,15.7057]
[1723155053511,28.9373,159.28,159.21,6.2806]
[1723155053820,6.2786,159.27,159.21,6.2806]
[1723155054038,6.2786,159.27,159.2,21.9843]
[1723155054223,22.6591,159.28,159.13,31.4198]
[1723155054392,1.57018456,159.27,159.16,15.7066]
[1723155054589,1.57018456,159.27,159.16,21.9893]
[1723155054903,6.2799,159.24,159.18,8.282]
[1723155055102,20.0,159.23,159.18,8.282]
[1723155055616,6.2815,159.2,159.18,2.0]
[1723155055795,20.0,159.19,159.18,2.0]
[1723155056543,22.6591,159.28,159.18,2.0]
[1723155057019,6.2789,159.27,159.18,17.7054]
[1723155057194,22.6591,159.28,159.21,15.7024]
[1723155057400,6.467,159.34,159.22,45.0]
[1723155057701,6.467,159.34,159.23,40.0]
[1723155057908,15.4015,159.35,159.24,45.0]
[1723155058108,6.2759,159.34,159.27,15.6961]
[1723155058328,1.56915171,159.34,159.22,0.18129248]
[1723155058626,6.2762,159.33,159.27,6.2786]
[1723155058805,15.4015,159.35,159.27,6.2786]
[1723155059009,21.6772,159.35,159.26,15.6973]
[1723155059315,6.277,159.32,159.26,15.6973]
[1723155059621,6.2767,159.32,159.26,15.6973]
[1723155059998,1.56928062,159.31,159.17,20.0]
[1723155060204,6.2791,159.26,159.21,15.7023]
[1723155060425,20.0,159.34,159.13,20.0]
[1723155060725,6.2779,159.29,159.22,6.2806]
[1723155060905,26.2782,159.28,159.17,31.4117]
[1723155061100,35.6899,159.34,159.22,15.7013]
[1723155061324,6.2778,159.29,159.22,15.7013]
[1723155061515,15.4015,159.35,159.22,20.0]
[1723155061718,15.4015,159.35,159.28,15.6954]
[1723155061927,6.2754,159.36,159.28,15.6954]
[1723155062222,15.5391,159.42,159.31,15.6923]
[1723155062444,15.5391,159.42,159.34,15.6888]
[1723155062802,6.2735,159.4,159.34,15.6888]
[1723155063528,21.8122,159.42,159.34,15.6888]
[1723155063724,15.5391,159.42,159.34,15.6888]
[1723155064049,6.3929,159.47,159.3,20.0]
[1723155064203,6.2735,159.4,159.34,6.2758]
[1723155064530,6.2747,159.37,159.31,20.0]
[1723155064735,15.6834,159.41,159.3,0.1761738]
[1723155064908,17.25223942,159.41,159.3,0.1761738]
[1723155065227,17.25223942,159.41,159.29,15.6939]
[1723155065228,6.2774,159.31,159.25,21.9773]
[1723155065447,6.3623,159.34,159.22,0.17626232]
[1723155065753,6.3623,159.34,159.2,6.281]
[1723155065754,15.6919,159.32,159.16,0.17632877]
[1723155066045,6.2795,159.25,159.18,8.282]
[1723155066254,20.0,159.24,159.18,2.0]
[1723155066562,6.3623,159.34,159.18,2.0]
[1723155066730,1.56991095,159.3,159.18,2.0]
[1723155066920,15.6969,159.27,159.18,2.0]
[1723155067120,20.0,159.26,159.18,2.0]
[1723155067344,6.2802,159.23,159.18,2.0]
[1723155068050,6.2818,159.19,159.18,2.0]
[1723155068226,20.0,159.19,159.18,2.0]
[1723155068425,15.6964,159.28,159.18,2.0]
[1723155068641,6.2806,159.22,159.18,2.0]
[1723155068844,20.0,159.21,159.18,2.0]
[1723155069018,26.2813,159.21,159.18,2.0]
[1723155069753,6.2814,159.2,159.18,2.0]
[1723155070059,20.0,159.21,159.18,2.0]
[1723155070060,7.85220919,159.19,159.18,2.0]
[1723155070222,7.85220919,159.19,159.11,0.17638418]
[1723155070223,6.2845,159.12,159.11,0.17638418]
[1723155070732,26.2845,159.12,159.11,0.17638418]
[1723155071135,20.0,159.12,159.03,0.17647291]
[1723155071339,20.0,159.11,159.03,0.17647291]
[1723155071540,6.2869,159.06,159.03,0.17647291]
[1723155071933,21.57204287,159.05,158.97,15.7255]
[1723155072131,15.7136,159.1,158.97,15.7255]
[1723155072346,6.2876,159.05,158.99,6.2896]
[1723155072527,6.2876,159.05,158.96,0.17655062]
[1723155072528,17.28558028,159.1,158.96,0.17655062]
[1723155072734,15.7167,159.07,158.96,0.17655062]
[1723155072938,6.2893,159.0,158.96,0.17655062]
[1723155073263,15.7199,159.04,158.95,0.8230268]
[1723155073435,66.57282331,159.03,158.95,0.8230268]
[1723155073754,20.0,159.03,158.95,0.8230268]
[1723155074469,6.2905,158.97,158.95,0.8230268]
[1723155074629,20.0,159.03,158.95,0.8230268]
[1723155075028,20.0,159.03,158.97,6.2904]
[1723155075243,20.0,159.03,158.95,16.5506268]
[1723155075455,6.2888,159.02,158.95,16.5506268]
[1723155075659,20.0,159.06,158.95,16.5506268]
[1723155075843,21.57224624,159.06,158.95,0.8230268]
[1723155076057,15.7188,159.05,158.95,0.8230268]
[1723155076236,6.2897,158.99,158.95,0.8230268]
[1723155076662,6.2892,159.01,158.95,0.8230268]
[1723155076964,35.7176,159.06,158.95,0.8230268]
[1723155077341,6.1004,159.07,158.95,0.8230268]
[1723155077545,1.57218354,159.06,158.88,0.17663952]
[1723155077749,15.7227,159.01,158.88,0.17663952]
[1723155078061,37.5337,159.07,158.89,15.7338]
[1723155078062,15.7189,159.05,158.89,15.7338]
[1723155078257,37.5337,159.07,158.89,15.7338]
[1723155078258,6.2914,158.95,158.89,15.7338]
[1723155078462,15.7217,159.02,158.9,6.2932]
[1723155078642,6.2905,158.97,158.89,15.7338]
[1723155078842,6.2879,159.04,158.97,6.2901]
[1723155079158,37.5338,159.07,158.89,20.0]
[1723155079464,37.5338,159.07,158.88,0.17663952]
[1723155079465,15.7186,159.05,158.9,15.733]
[1723155079658,37.5338,159.07,158.9,15.733]
[1723155079659,15.7218,159.02,158.9,15.733]
[1723155079864,1.57283248,159.01,158.88,0.17663952]
[1723155080047,6.2904,158.97,158.9,6.2932]
[1723155080362,20.0,158.96,158.91,6.2928]
[1723155081142,20.0,158.96,158.89,15.7339]
[1723155081340,26.2911,158.96,158.89,22.0275]
[1723155081536,26.291,158.96,158.89,22.0272]
[1723155081761,20.0,158.96,158.89,15.7339]
[1723155081972,20.0,159.01,158.89,15.7339]
[1723155082258,21.57282066,159.01,158.89,15.7339]
[1723155082655,6.2913,158.95,158.89,15.7339]
[1723155083161,6.2909,158.96,158.89,22.0275]
[1723155083340,26.2913,158.95,158.89,15.7339]
[1723155083540,6.2913,158.95,158.89,15.7339]
[1723155083761,6.2913,158.95,158.89,22.0275]
[1723155083953,6.2901,158.98,158.92,6.2924]
[1723155084155,6.1004,159.07,158.97,6.2902]
[1723155084368,6.2901,158.98,158.92,6.2922]
[1723155084672,15.7194,159.04,158.88,0.17663952]
[1723155084673,1.57261298,158.97,158.88,0.17663952]
[1723155084850,1.57287193,159.0,158.88,0.17663952]
[1723155085048,6.292,158.94,158.88,0.17663952]
[1723155085447,6.292,158.94,158.88,6.47063952]
[1723155085645,15.7228,159.01,158.9,15.7327]
[1723155085965,20.0,159.0,158.9,15.7327]
[1723155087153,20.0,159.0,158.88,0.17663952]
[1723155087154,20.0,159.0,158.93,15.73]
[1723155087358,6.2881,159.03,158.97,6.2902]
[1723155087539,6.1004,159.07,158.96,15.7269]
[1723155088142,7.67261368,159.07,158.88,20.17663952]
[1723155088444,7.67261368,159.07,158.88,15.91103952]
[1723155088661,7.67261368,159.07,158.88,15.7344]
[1723155088848,6.2915,158.95,158.88,22.0282]
[1723155089165,20.0,158.94,158.88,22.0282]
[1723155089364,20.0,158.94,158.87,6.2944]
[1723155089565,1.57295976,158.99,158.86,6.2948]
[1723155089566,6.2924,158.92,158.86,6.2948]
[1723155089779,6.2924,158.92,158.85,47.2123]
[1723155089780,6.57512638,158.99,158.89,15.7338]
[1723155090071,6.57512638,158.99,158.85,31.4743]
[1723155090072,21.57307422,158.98,158.85,31.4743]
[1723155090248,6.2926,158.92,158.86,22.0314]
[1723155090447,15.7263,158.97,158.84,6.2956]
[1723155090448,6.2933,158.9,158.84,6.2956]
[1723155090655,17.30243268,158.95,158.84,6.2956]
[1723155091166,6.57512638,158.99,158.82,0.17670625]
[1723155091167,20.0,158.94,158.82,0.17670625]
[1723155091371,26.292,158.94,158.82,0.17670625]
[1723155091676,6.2908,158.97,158.85,20.0]
[1723155091975,6.2909,158.96,158.91,22.0248]
[1723155092149,6.2909,158.96,158.91,15.732]
[1723155092847,6.57388445,159.02,158.93,6.292]
[1723155093064,1.57255669,159.01,158.86,20.0]
[1723155093277,31.44,159.04,158.87,20.0]
[1723155093479,15.7254,158.98,158.87,15.7353]
[1723155093771,6.2905,158.97,158.91,6.2928]
[1723155093956,15.722,159.02,158.91,6.2928]
[1723155094155,21.57281404,159.01,158.91,6.2928]
[1723155094475,6.2913,158.95,158.89,22.0265]
[1723155094866,15.722,159.02,158.96,6.2907]
[1723155094867,6.2885,159.02,158.96,6.2907]
[1723155095045,6.2897,158.99,158.94,15.729]
[1723155095249,272.7255,159.16,158.88,31.4685]
[1723155095250,15.7203,159.03,158.88,31.4685]
[1723155095567,15.7203,159.03,158.88,6.2937]
[1723155095568,6.2916,158.95,158.88,6.2937]
[1723155095958,6.2921,158.93,158.88,15.7349]
[1723155096168,6.2921,158.93,158.88,22.0288]
[1723155096372,20.0,158.92,158.84,15.7382]
[1723155096581,31.4401,159.04,158.84,20.0]
[1723155096582,15.7223,159.01,158.84,20.0]
[1723155096763,20.0,159.0,158.92,6.2923]
[1723155096957,6.2908,158.96,158.9,22.0259]
[1723155097271,20.0,159.0,158.9,15.7329]
[1723155097479,6.2904,158.98,158.92,6.2923]
[1723155097777,20.0,158.97,158.92,6.2923]
[1723155097978,20.0,158.97,158.87,15.736]
[1723155098281,6.2916,158.94,158.88,6.294]
[1723155098462,6.2913,158.95,158.89,6.2936]
[1723155098657,6.2913,158.95,158.89,6.2935]
[1723155099777,26.2908,158.97,158.89,15.7333]
[1723155099966,20.0,158.97,158.87,31.4708]
[1723155100161,15.7255,159.16,158.93,15.7293]
[1723155100364,32.0874,159.08,158.96,15.7271]
[1723155100673,16.3714,159.08,159.02,15.7212]
[1723155100881,6.0338,159.13,159.04,15.7184]
[1723155101077,6.0338,159.13,158.91,26.4428]
[1723155101078,1.57184377,159.12,159.01,6.2885]
[1723155101380,6.2893,159.0,158.91,37.9057]
[1723155101594,6.2889,159.01,158.94,15.729]
[1723155101759,1.57246858,159.04,158.94,15.729]
[1723155101960,1.57246982,159.05,158.94,15.729]
[1723155102154,20.0,159.05,158.96,15.7263]
[1723155102360,6.2887,159.02,158.96,22.0169]
[1723155102561,1.5723987,159.01,158.93,15.73]
[1723155102781,6.2898,158.99,158.94,6.2916]
[1723155102976,1.57254852,159.07,158.93,15.73]
[1723155103285,6.2886,159.02,158.95,15.7273]
[1723155103465,26.2889,159.01,158.95,22.0185]
[1723155103661,20.0,159.01,158.96,6.2907]
[1723155103967,6.2882,159.03,158.97,6.2904]
[1723155104171,20.0,159.02,158.95,15.7273]
[1723155104383,21.57241594,159.07,158.95,15.7273]
[1723155104683,20.0,159.06,158.95,15.7273]
[1723155104888,1.57241978,159.05,158.95,15.7273]
[1723155105264,6.2865,159.07,159.01,6.2885]
[1723155105465,6.2865,159.08,159.02,6.2883]
[1723155105677,6.2867,159.07,159.01,6.2888]
[1723155105985,15.7141,159.1,158.96,15.7267]
[1723155106157,6.2886,159.02,158.97,6.2904]
[1723155106556,43.67977398,159.13,158.96,15.7267]
[1723155106883,6.2878,159.04,158.98,6.2897]
[1723155107183,6.2882,159.03,158.97,6.2904]
[1723155107391,33.00228798,159.09,158.93,15.7299]
[1723155107693,15.7216,159.02,158.9,15.7331]
[1723155107899,26.289,159.01,158.95,6.2909]
[1723155108095,6.2893,159.0,158.95,6.2909]
[1723155108272,51.22377398,159.08,158.85,31.4751]
[1723155108273,21.57248818,158.99,158.85,31.4751]
[1723155108593,26.29,158.99,158.86,26.4428]
[1723155108790,6.2881,159.03,158.97,6.2901]
[1723155109089,6.2893,159.0,158.94,6.2916]
[1723155109289,20.0,159.02,158.89,31.4673]
[1723155109290,20.0,159.02,158.89,51.4673]
[1723155109496,6.2889,159.01,158.96,6.2906]
[1723155109790,20.0,159.07,158.93,31.4592]
[1723155109970,6.2883,159.03,158.97,15.7254]
[1723155111196,6.2883,159.03,158.97,22.0156]
[1723155111483,6.2874,159.05,158.99,6.2896]
[1723155111689,20.0,159.04,158.99,6.2896]
[1723155111872,15.7151,159.09,158.99,15.7233]
[1723155112072,41.9856,159.09,158.91,0.16455998]
[1723155112262,15.7196,159.04,158.93,6.2917]
[1723155112462,6.29,158.99,158.94,6.2916]
[1723155112687,15.7166,159.07,158.96,6.2908]
[1723155112993,6.2878,159.04,158.96,15.7264]
[1723155113195,21.57221172,159.03,158.93,15.7299]
[1723155113503,37.28777355,159.08,158.95,15.7274]
[1723155113784,6.2884,159.03,158.97,6.2901]
[1723155114004,35.7154,159.08,158.93,51.4592]
[1723155114005,20.0,159.08,158.93,51.4592]
[1723155114163,6.2869,159.06,159.0,6.2889]
[1723155114364,23.0956,159.09,158.97,20.0]
[1723155114666,23.0956,159.09,158.94,20.0]
[1723155114993,1.57190659,159.08,158.98,15.7248]
[1723155115174,6.2875,159.05,158.99,6.2895]
[1723155115376,6.2875,159.05,158.98,15.7248]
[1723155115377,6.2869,159.06,159.0,6.2892]
[1723155115766,6.5326,159.09,159.01,15.7222]
[1723155115963,6.2372,159.14,158.99,61.38]
[1723155116182,6.2372,159.14,159.03,15.7193]
[1723155116386,7.80851402,159.14,158.99,15.7233]
[1723155116879,15.7116,159.12,158.99,15.7233]
[1723155117089,1.57170735,159.11,158.99,15.7233]
[1723155117476,6.112,159.21,159.02,20.0]
[1723155117676,6.2821,159.19,159.11,15.7121]
[1723155117881,1.57072203,159.18,159.11,15.7121]
[1723155118093,6.2825,159.18,159.11,21.997]
[1723155118397,6.2817,159.2,159.11,15.7121]
[1723155118572,6.112,159.21,159.11,15.7121]
[1723155118774,12.393,159.21,159.14,21.9924]
[1723155118983,6.2806,159.22,159.15,6.2833]
[1723155119201,15.6987,159.25,159.1,15.7132]
[1723155119202,6.2823,159.18,159.1,15.7132]
[1723155119369,15.6987,159.25,159.14,6.2837]
[1723155119692,6.2814,159.2,159.14,6.2837]
[1723155120586,6.2818,159.19,159.13,15.7102]
[1723155120788,6.56717819,159.27,159.16,15.7069]
[1723155120972,22.5173,159.28,159.16,15.7069]
[1723155120973,1.56997194,159.26,159.16,15.7069]
[1723155121173,6.2811,159.21,159.16,15.7069]
[1723155121376,6.2805,159.23,159.16,15.7069]
[1723155121575,22.5173,159.28,159.12,20.0]
[1723155121878,1.56993685,159.27,159.15,15.7076]
[1723155122181,1.56993685,159.27,159.07,31.4307]
[1723155122182,6.2822,159.18,159.11,15.7116]
[1723155122604,15.7007,159.23,159.12,6.2845]
[1723155122605,6.2818,159.19,159.12,6.2845]
[1723155122779,15.6969,159.27,159.11,15.7116]
[1723155122973,22.5173,159.28,159.18,6.2821]
[1723155123170,22.5173,159.28,159.12,51.4226]
[1723155123171,20.0,159.27,159.17,15.7063]
[1723155123372,6.2794,159.25,159.19,6.2817]
[1723155123589,20.0,159.24,159.2,6.2813]
[1723155123972,22.5173,159.28,159.2,15.7033]
[1723155124180,26.2786,159.27,159.21,6.281]
[1723155124686,6.4361,159.34,159.24,6.2798]
[1723155124896,6.4361,159.34,159.23,15.7002]
[1723155125201,6.4361,159.34,159.29,6.2777]
[1723155125382,6.4361,159.34,159.22,20.0]
[1723155125383,6.276,159.34,159.26,15.6973]
[1723155125585,6.2762,159.33,159.26,15.6973]
[1723155125901,17.2925268,159.35,159.22,15.7006]
[1723155125902,1.56929106,159.32,159.22,15.7006]
[1723155126076,17.2925268,159.35,159.22,15.7006]
[1723155126077,15.6913,159.33,159.22,15.7006]
[1723155126278,1.56973394,159.32,159.22,15.7006]
[1723155126500,15.6913,159.33,159.22,15.7006]
[1723155126678,17.2925268,159.35,159.24,6.2797]
[1723155126679,6.2774,159.31,159.24,6.2797]
[1723155126881,26.2774,159.3,159.24,6.2798]
[1723155127185,20.0,159.29,159.24,6.2798]
[1723155127512,20.0,159.29,159.18,15.7047]
[1723155127513,21.56962866,159.29,159.18,15.7047]
[1723155127794,20.0,159.29,159.18,15.7047]
[1723155128001,6.2794,159.26,159.2,6.281]
[1723155128721,6.2798,159.24,159.18,21.9868]
[1723155128893,6.279,159.27,159.2,6.2812]
[1723155129071,26.2792,159.26,159.2,6.2812]
[1723155129400,26.2792,159.26,159.14,26.0005]
[1723155129401,20.0,159.3,159.21,15.7025]
[1723155129899,20.0,159.31,159.21,15.7025]
[1723155130288,6.279,159.26,159.21,21.9835]
[1723155130486,6.279,159.26,159.21,15.7025]
[1723155130798,20.0,159.31,159.21,21.9834]
[1723155131106,20.0,159.31,159.16,31.4132]
[1723155131107,15.6946,159.29,159.17,15.7055]
[1723155131271,20.0,159.31,159.06,16.5021]
[1723155131272,15.1115,159.23,159.06,16.5021]
[1723155131622,1.57085205,159.22,159.02,6.2375]
[1723155131780,6.1665,159.16,159.05,15.7177]
[1723155132103,21.5714846,159.15,159.05,15.7177]
[1723155132304,6.2854,159.1,159.05,15.7177]
[1723155132490,20.0,159.15,159.05,15.7177]
[1723155132807,6.2871,159.06,159.01,15.7216]
[1723155132997,46.57146707,159.14,158.99,6.2896]
[1723155132998,6.2873,159.05,158.99,6.2896]
[1723155133388,31.7782,159.11,159.02,6.2884]
[1723155133707,20.0,159.1,159.0,15.7227]
[1723155134004,20.0,159.1,159.03,15.7202]
[1723155134383,6.2863,159.08,159.03,15.7202]
[1723155134581,20.0,159.07,158.99,15.7233]
[1723155134885,6.2873,159.06,158.98,15.7251]
[1723155135086,6.2866,159.07,158.98,15.7251]
[1723155135307,20.0,159.06,158.98,15.7251]
[1723155135602,6.2885,159.02,158.96,6.2908]
[1723155135902,1.57240254,159.04,158.98,6.29]
[1723155136078,15.7146,159.09,158.98,15.7245]
[1723155136287,15.7146,159.09,159.0,6.2892]
[1723155136288,6.2869,159.06,159.0,6.2892]
[1723155136592,20.0,159.08,158.92,51.4604]
[1723155136593,20.0,159.05,159.01,15.7222]
[1723155136801,6.2874,159.05,158.99,6.2894]
[1723155137105,20.0,159.08,158.99,15.7232]
[1723155137311,6.2854,159.1,159.02,15.7204]
[1723155137605,16.0657,159.11,159.02,15.7204]
[1723155137808,6.2857,159.1,159.05,6.2873]
[1723155137996,6.5719526,159.15,159.05,15.7182]
[1723155138199,6.1665,159.16,159.0,31.445]
[1723155138409,6.2862,159.08,159.03,15.7194]
[1723155138702,1.57133556,159.14,159.03,15.7194]
[1723155139002,15.712,159.12,158.99,15.7239]
[1723155139206,6.2857,159.09,159.03,6.2877]
[1723155139378,1.57171739,159.15,158.96,31.4528]
[1723155139716,6.2857,159.1,159.04,6.2876]
[1723155139924,6.1665,159.16,159.05,15.718]
[1723155140205,6.1665,159.16,159.06,6.2869]
[1723155140414,1.57145448,159.15,158.96,31.4528]
[1723155140606,1.57145448,159.15,158.88,77.0504]
[1723155140607,1.57145448,159.15,158.89,20.0]
[1723155140792,15.7185,159.05,158.88,15.6704]
[1723155140984,6.2888,159.02,158.95,22.019]
[1723155141305,20.0,159.01,158.96,6.2905]
[1723155141483,20.0,159.01,158.94,6.2913]
[1723155141683,15.5639,159.06,158.88,15.7344]
[1723155141684,6.2909,158.96,158.88,15.7344]
[1723155141881,15.7219,159.02,158.87,20.0]
[1723155142111,20.0,159.01,158.87,20.0]
[1723155142315,1.57258884,159.0,158.91,15.732]
[1723155142490,20.0,159.01,158.91,15.732]
[1723155142811,21.57272471,159.01,158.91,15.732]
[1723155143015,21.57272471,159.01,158.89,6.2936]
[1723155143016,6.2913,158.95,158.89,6.2936]
[1723155143307,21.57272471,159.01,158.87,15.7352]
[1723155143488,6.2905,158.97,158.9,6.2928]
[1723155143684,20.0,158.96,158.9,6.2928]
[1723155143885,20.0,158.96,158.91,6.2928]
[1723155144188,1.57282149,158.95,158.87,15.7352]